bitfinex/quotes_ETHUSD_20241119
["timestamp","ask_amount","ask_price","bid_price","bid_amount"]
[1732056111568,3.24441,3082.3,3081.6,0.18010317]
[1732056111812,3.24441,3082.3,3081.7,1.62244]
[1732056112172,3.24441,3082.3,3081.7,3.24488]
[1732056112615,3.24441,3082.3,3081.8,1.62242]
[1732056113015,0.55,3082.4,3080.9,3.0]
[1732056113172,0.55,3082.4,3082.0,1.62231]
[1732056113812,3.24415,3082.5,3082.0,1.62231]
[1732056114118,2.74415,3082.5,3082.0,1.62231]
[1732056114614,3.24422,3082.4,3081.9,1.62237]
[1732056114775,3.24422,3082.4,3081.9,1.946849]
[1732056116798,3.79412,3082.5,3082.0,1.62231]
[1732056118770,3.24412,3082.5,3082.0,1.62231]
[1732056119014,3.24412,3082.5,3082.0,1.9792309]
[1732056123241,3.24412,3082.5,3082.0,0.3569209]
[1732056123387,3.24408,3082.6,3082.0,1.62232]
[1732056123586,0.55,3082.8,3081.8,1.62242]
[1732056123785,3.24424,3082.4,3081.9,1.62237]
[1732056124417,4.0754,3082.3,3081.7,1.62247]
[1732056124619,4.0754,3082.3,3081.6,1.62251]
[1732056124791,3.24443,3082.2,3081.3,1.62268]
[1732056124991,4.07614,3081.6,3080.9,1.62287]
[1732056127742,3.24533,3081.4,3080.9,2.03711076]
[1732056129008,3.24464,3082.1,3081.3,1.62264]
[1732056129333,3.24464,3082.1,3081.5,1.62255]
[1732056129540,3.24465,3082.0,3081.5,1.62255]
[1732056129739,3.801,3082.2,3081.0,2.12654108]
[1732056130038,3.24454,3082.1,3081.5,1.62256]
[1732056130255,3.24454,3082.1,3081.6,1.62253]
[1732056130590,3.801,3082.2,3081.7,1.62246]
[1732056131750,0.801,3082.2,3081.7,1.62246]
[1732056132051,0.801,3082.2,3081.7,3.569402]
[1732056132199,0.801,3082.6,3081.9,1.62236]
[1732056132505,0.801,3082.6,3082.0,0.162236]
[1732056132853,0.801,3082.6,3081.1,3.25407718]
[1732056133146,3.24439,3082.3,3081.8,1.62239]
[1732056133362,3.2442,3082.5,3081.9,1.62232]
[1732056133713,3.2442,3082.5,3081.9,3.24466]
[1732056135658,0.801,3082.6,3082.1,1.62223]
[1732056135802,0.801,3082.6,3082.2,1.62219]
[1732056136141,3.24374,3082.9,3082.1,1.62223]
[1732056136142,6.48752,3082.9,3082.3,0.324442]
[1732056136317,3.24374,3082.9,3082.1,1.62223]
[1732056136513,3.24374,3082.9,3082.3,1.62216]
[1732056136725,3.24374,3082.9,3082.4,1.62208]
[1732056136929,3.24398,3082.7,3082.2,0.162223]
[1732056137319,3.24398,3082.7,3080.9,1.62288]
[1732056137535,3.24375,3082.9,3082.0,1.62228]
[1732056138104,3.24388,3082.8,3082.2,1.62221]
[1732056139334,3.24381,3082.8,3082.2,1.946662]
[1732056139960,3.24397,3082.7,3082.2,0.324452]
[1732056140269,3.24399,3082.7,3082.2,0.324452]
[1732056140561,3.24399,3082.7,3081.7,3.0]
[1732056140562,3.24399,3082.7,3082.1,1.62223]
[1732056140767,3.24399,3082.7,3081.8,1.62238]
[1732056140768,3.24412,3082.5,3081.8,1.62238]
[1732056140914,4.04512,3082.5,3081.8,1.62238]
[1732056141117,4.04512,3082.5,3081.9,0.162238]
[1732056141358,3.24432,3082.4,3081.9,0.162238]
[1732056141560,3.24433,3082.3,3081.8,1.62242]
[1732056141775,3.24433,3082.3,3081.6,3.24501]
[1732056141917,3.24433,3082.3,3081.7,1.784722]
[1732056142132,3.24445,3082.2,3081.7,1.784722]
[1732056143421,3.24435,3082.3,3081.7,1.784722]
[1732056143661,3.24435,3082.3,3081.8,1.8008922]
[1732056143867,3.24435,3082.3,3081.8,0.1784722]
[1732056144268,0.801,3082.4,3081.8,0.1784722]
[1732056144269,4.04525,3082.4,3081.9,1.62237]
[1732056144560,4.04525,3082.4,3081.8,0.1784722]
[1732056144561,0.801,3082.4,3081.8,0.1784722]
[1732056144745,3.24439,3082.3,3081.8,0.1784722]
[1732056144914,6.48879,3082.3,3081.8,0.1784722]
[1732056145569,0.801,3082.4,3081.8,0.1784722]
[1732056145720,2.01346221,3082.6,3081.8,0.1784722]
[1732056145721,3.24435,3082.3,3081.9,0.18009122]
[1732056145915,3.24435,3082.3,3081.8,1.62242]
[1732056146120,3.2446,3082.1,3081.5,1.62257]
[1732056146331,3.2447,3082.0,3081.5,1.62257]
[1732056146575,3.2447,3082.0,3081.6,0.162257]
[1732056148326,4.06142,3081.9,3081.3,1.62267]
[1732056149068,3.24486,3081.8,3081.3,1.62267]
[1732056149433,0.8166,3081.9,3080.9,3.0]
[1732056149647,4.06138,3081.9,3081.3,1.62266]
[1732056150019,4.06138,3081.9,3081.3,1.62265]
[1732056150932,4.06138,3081.9,3081.1,1.62276]
[1732056150933,3.24496,3081.7,3081.1,1.62276]
[1732056151139,3.24496,3081.7,3081.2,0.162276]
[1732056152060,3.24496,3081.7,3081.1,1.62276]
[1732056152263,5.25831221,3081.8,3081.1,1.62276]
[1732056152623,2.01346221,3081.7,3080.9,1.86938102]
[1732056152826,3.24524,3081.5,3081.0,1.89399412]
[1732056155294,5.25846221,3081.7,3081.1,1.62279]
[1732056155449,3.24512,3081.6,3081.1,1.62279]
[1732056155650,3.24507,3081.6,3081.1,1.62275]
[1732056155848,3.24507,3081.6,3081.1,1.99907951]
[1732056158101,5.25833221,3081.8,3081.1,1.99907951]
[1732056158307,3.24496,3081.7,3081.2,1.62271]
[1732056158608,3.24506,3081.6,3081.1,1.62279]
[1732056159091,2.01346221,3081.8,3081.1,1.947316]
[1732056159290,5.25834221,3081.8,3081.2,1.62274]
[1732056159591,6.48982,3081.8,3081.2,1.62274]
[1732056160263,3.24496,3081.7,3081.2,1.62274]
[1732056161598,3.24496,3081.7,3080.9,1.62286]
[1732056161769,3.24506,3081.6,3081.0,1.785096]
[1732056161975,3.24506,3081.6,3081.1,1.62278]
[1732056162862,3.24519,3081.5,3081.0,0.162286]
[1732056163062,3.24519,3081.5,3081.0,1.785126]
[1732056163287,3.24519,3081.5,3081.1,0.3407986]
[1732056164405,3.24519,3081.5,3081.1,1.9635886]
[1732056164904,3.24507,3081.6,3081.1,1.9635886]
[1732056166164,2.01346221,3081.8,3081.4,1.62263]
[1732056166502,7.03339663,3082.4,3081.4,1.62263]
[1732056166503,3.24457,3082.1,3081.6,1.62249]
[1732056166799,5.25789221,3082.2,3081.7,1.62247]
[1732056167299,3.24443,3082.2,3081.7,1.62247]
[1732056167902,2.01346221,3082.3,3081.9,1.62236]
[1732056168207,2.01346221,3082.4,3082.0,1.62231]
[1732056170570,2.01346221,3082.5,3082.0,1.62229]
[1732056170878,2.01346221,3082.5,3082.1,1.62224]
[1732056171408,2.01346221,3082.4,3081.7,0.162249]
[1732056171619,2.01346221,3082.2,3081.9,1.62232]
[1732056171906,2.01346221,3082.3,3081.9,1.62235]
[1732056172294,2.01346221,3082.3,3081.9,1.62237]
[1732056173166,2.01346221,3082.3,3081.8,1.62242]
[1732056173366,2.01346221,3082.3,3082.0,1.62231]
[1732056174164,2.01346221,3082.4,3082.0,1.62231]
[1732056177016,2.01346221,3082.4,3082.3,1.62216]
[1732056177372,2.01346221,3082.6,3082.4,1.6221]
[1732056177597,2.01346221,3082.8,3082.4,1.6221]
[1732056177801,2.01346221,3082.8,3082.5,1.62205]
[1732056178276,2.01346221,3082.8,3082.4,1.6221]
[1732056178611,2.01346221,3082.9,3082.4,1.78431]
[1732056178781,2.01346221,3082.9,3082.4,3.40639]
[1732056178968,2.01346221,3083.0,3082.6,1.62199]
[1732056179604,5.01346221,3083.1,3082.8,1.6219]
[1732056179822,2.01346221,3083.1,3082.8,1.6219]
[1732056179982,5.01346221,3083.2,3082.8,1.6219]
[1732056181573,8.25684221,3083.2,3082.6,1.62199]
[1732056181769,2.01346221,3083.1,3082.6,1.62199]
[1732056182071,2.01346221,3083.1,3082.6,1.62196]
[1732056182299,2.01346221,3083.1,3082.4,0.16221]
[1732056182300,2.01346221,3083.1,3082.7,1.62194]
[1732056184117,2.01346221,3083.0,3082.7,1.62194]
[1732056184348,2.01346221,3083.1,3082.7,1.62194]
[1732056184874,2.01346221,3083.0,3082.7,1.62194]
[1732056185868,2.01346221,3083.1,3082.7,1.946337]
[1732056186750,2.01346221,3083.0,3082.7,1.946337]
[1732056187441,2.01346221,3083.1,3082.8,0.1946337]
[1732056187646,5.25684221,3083.2,3082.8,0.1946337]
[1732056188067,3.24338,3083.2,3082.8,0.1946337]
[1732056188247,2.01346221,3083.3,3082.8,0.1946337]
[1732056188448,2.01346221,3083.2,3082.8,0.1946337]
[1732056188646,5.25675221,3083.3,3082.7,1.946337]
[1732056189333,0.142297,3083.4,3083.1,1.62171]
[1732056189957,0.142297,3083.4,3083.2,1.62166]
[1732056190644,0.142297,3083.4,3083.1,1.62171]
[1732056190869,0.142297,3083.4,3083.3,1.62163]
[1732056203893,0.142297,3083.4,3083.1,1.62169]
[1732056204185,0.142297,3083.4,3083.1,1.62174]
[1732056204752,0.142297,3083.4,3083.3,4.63163]
[1732056204952,0.142297,3083.4,3083.3,0.626332]
[1732056205151,0.142297,3083.4,3082.1,0.01]
[1732056205152,3.24348,3083.1,3082.3,1.62212]
[1732056205398,3.24351,3083.1,3082.5,4.62202]
[1732056205552,3.24351,3083.1,3082.5,1.62202]
[1732056205753,3.2436,3083.0,3082.3,1.62215]
[1732056206009,3.24371,3082.9,3082.4,0.162215]
[1732056206493,3.24371,3082.9,3082.2,1.62217]
[1732056206873,6.4871,3083.1,3082.3,4.62214]
[1732056207395,3.24352,3083.1,3082.4,1.62207]
[1732056207597,3.24352,3083.1,3082.5,0.624421]
[1732056208301,3.24352,3083.1,3082.5,2.246471]
[1732056210573,3.24352,3083.1,3082.6,3.0]
[1732056211121,3.24352,3083.1,3082.5,2.246451]
[1732056211468,3.24352,3083.1,3082.6,3.0]
[1732056212499,3.24352,3083.1,3082.6,4.62199]
[1732056214334,3.24331,3083.3,3082.6,3.0]
[1732056214498,3.24331,3083.3,3082.7,1.62194]
[1732056214499,3.24339,3083.2,3082.7,1.62194]
[1732056214700,3.24339,3083.2,3082.8,0.462194]
[1732056215639,3.24339,3083.2,3082.7,1.62194]
[1732056216934,3.24327,3083.3,3082.8,1.6219]
[1732056219693,0.142297,3083.4,3083.1,1.62173]
[1732056220395,0.142297,3083.4,3082.9,1.62184]
[1732056220619,0.142297,3083.4,3082.9,3.24363]
[1732056221023,0.142297,3083.4,3083.1,1.62173]
[1732056221859,0.142297,3083.4,3083.3,1.62163]
[1732056222029,0.142297,3083.4,3082.5,1.63201]
[1732056222030,3.24327,3083.3,3082.8,1.6219]
[1732056222231,3.24327,3083.3,3082.7,1.62193]
[1732056222657,3.24327,3083.3,3082.7,1.62191]
[1732056222854,3.24327,3083.3,3082.8,1.62189]
[1732056224865,6.48663,3083.3,3082.8,1.62189]
[1732056225076,6.48663,3083.3,3082.9,0.162189]
[1732056225237,6.48663,3083.3,3082.2,1.62218]
[1732056225238,3.24387,3082.8,3082.2,1.62217]
[1732056225424,3.24422,3082.4,3081.8,1.96067326]
[1732056225620,3.24422,3082.4,3081.9,0.19606733]
[1732056226055,0.7625,3082.3,3081.9,0.19606733]
[1732056226260,0.7625,3082.3,3081.9,1.81840733]
[1732056226467,4.00683,3082.3,3081.9,0.19606733]
[1732056226782,4.00683,3082.3,3082.0,0.18184573]
[1732056227474,0.7625,3082.3,3082.0,0.18184573]
[1732056230638,0.55,3082.5,3082.0,1.80413573]
[1732056230842,0.55,3082.5,3082.1,1.62227]
[1732056231042,0.55,3082.5,3082.2,0.162227]
[1732056231932,0.8238,3082.6,3082.2,1.784437]
[1732056232348,0.8238,3082.6,3082.3,1.62216]
[1732056232589,0.55,3082.8,3082.3,1.62216]
[1732056232799,0.55,3082.8,3082.4,0.1784387]
[1732056234259,0.55,3082.8,3082.1,3.24448]
[1732056234452,0.55,3082.8,3081.7,1.62248]
[1732056234453,3.24422,3082.4,3081.7,1.62248]
[1732056234658,0.8093,3082.3,3081.9,1.62237]
[1732056235898,0.8093,3082.3,3081.8,3.162248]
[1732056236094,0.8093,3082.3,3081.8,0.162248]
[1732056237292,0.8093,3082.3,3081.9,1.62236]
[1732056238307,0.55,3082.2,3081.9,1.62236]
[1732056238457,0.55,3082.2,3082.0,0.4784608]
[1732056238956,0.55,3082.2,3082.0,2.1007708]
[1732056240110,0.55,3082.2,3082.0,1.62231]
[1732056240455,0.55,3082.2,3082.1,1.62227]
[1732056241096,0.8093,3082.9,3082.5,3.24406]
[1732056241301,0.142297,3083.4,3082.6,0.324406]
[1732056241471,0.142297,3083.4,3083.1,1.62173]
[1732056241986,0.142297,3083.4,3083.2,1.62169]
[1732056242501,0.142297,3083.4,3083.2,1.946032]
[1732056242874,0.142297,3083.4,3083.3,1.62163]
[1732056243263,0.692297,3083.4,3083.3,1.62163]
[1732056244846,0.142297,3083.4,3083.3,1.62163]
[1732056246836,0.142297,3083.4,3083.2,3.344342]
[1732056246837,2.68461628,3085.0,3084.5,1.9452]
[1732056247005,3.24143,3085.1,3084.5,1.9452]
[1732056247209,3.49391628,3085.2,3084.7,1.94507]
[1732056247210,0.8093,3085.2,3084.7,1.94507]
[1732056247395,4.05059,3085.2,3084.7,1.94507]
[1732056247737,4.05059,3085.2,3084.6,1.94512]
[1732056248107,0.8093,3084.8,3083.8,0.494577]
[1732056248449,3.24187,3084.7,3084.0,1.9455]
[1732056248736,0.55,3084.6,3084.0,2.634614]
[1732056248931,0.55,3084.6,3084.0,0.689114]
[1732056249130,0.55,3084.6,3084.1,1.94544]
[1732056249330,0.55,3084.6,3083.9,3.0]
[1732056249331,3.24201,3084.5,3084.0,1.94552]
[1732056249740,0.55,3084.6,3084.0,1.94552]
[1732056249943,0.55,3084.6,3084.0,2.634634]
[1732056250093,0.55,3084.7,3084.4,1.94526]
[1732056250294,3.24143,3085.1,3084.4,3.758624]
[1732056250529,0.8009,3085.2,3084.4,3.758624]
[1732056250530,3.8009,3085.2,3084.4,0.194526]
[1732056250732,3.24138,3085.1,3084.5,1.94515]
[1732056251744,0.55,3085.0,3084.5,1.94515]
[1732056253650,0.55,3085.2,3084.7,1.94503]
[1732056256792,0.55,3085.2,3084.7,3.89007]
[1732056256989,0.55,3085.2,3084.7,1.94503]
[1732056257975,3.24209,3084.5,3083.9,1.94557]
[1732056258289,0.55,3084.4,3083.8,0.66668185]
[1732056258493,0.55,3084.4,3083.8,0.92791903]
[1732056258648,0.55,3084.2,3083.8,0.66668185]
[1732056258847,3.79233,3084.2,3083.8,0.66668185]
[1732056259317,3.79233,3084.2,3081.9,0.01]
[1732056259318,0.55,3083.9,3081.9,0.01]
[1732056259484,0.55,3083.0,3082.5,1.94641]
[1732056259689,0.55,3083.0,3082.6,0.194641]
[1732056260592,0.55,3083.1,3082.6,0.194641]
[1732056260785,0.55,3083.4,3082.7,1.94629]
[1732056261007,0.55,3083.4,3082.9,1.94621]
[1732056261503,3.79317,3083.4,3082.9,1.94621]
[1732056262093,3.79317,3083.4,3082.7,1.94629]
[1732056262303,0.55,3083.4,3082.8,0.194629]
[1732056262476,0.55,3083.4,3082.9,1.94621]
[1732056266088,0.55,3083.4,3083.0,1.94614]
[1732056267327,0.55,3083.4,3082.9,1.94621]
[1732056267503,0.55,3083.4,3083.1,1.94608]
[1732056269395,0.55,3083.6,3083.1,1.94608]
[1732056269596,3.2429,3083.7,3083.1,1.94608]
[1732056269597,0.55,3083.7,3083.1,1.94608]
[1732056269943,0.55,3083.7,3083.3,1.94594]
[1732056270554,0.55,3083.7,3083.3,1.94592]
[1732056273547,0.55,3083.7,3083.3,3.89184]
[1732056274713,0.55,3083.4,3082.4,0.3382448]
[1732056274910,0.55,3083.2,3082.5,1.94647]
[1732056275256,0.55,3083.2,3082.8,1.94627]
[1732056275555,0.55,3083.2,3082.8,2.335527]
[1732056277010,0.55,3083.4,3082.9,1.94618]
[1732056277216,0.7921,3083.6,3083.2,1.94601]
[1732056277551,0.7921,3083.6,3083.2,2.335194]
[1732056277763,0.7921,3083.6,3083.2,1.94598]
[1732056279824,0.55,3083.7,3083.2,1.94602]
[1732056280046,3.24267,3083.9,3083.2,1.94602]
[1732056280047,3.79267,3083.9,3083.2,1.94602]
[1732056280247,4.54697,3083.9,3083.2,1.94602]
[1732056280467,4.54697,3083.9,3083.2,2.140622]
[1732056281223,4.54697,3083.9,3083.4,1.9459]
[1732056282350,3.79267,3083.9,3083.4,1.9459]
[1732056285297,3.79254,3084.0,3083.5,1.94583]
[1732056286546,3.24254,3084.0,3083.5,1.94583]
[1732056289468,0.7543,3084.1,3083.3,3.89192]
[1732056289789,0.7543,3084.1,3083.8,3.89121]
[1732056291154,0.7543,3084.1,3084.0,1.94552]
[1732056291350,0.7543,3084.6,3084.2,1.94538]
[1732056291580,0.7543,3084.6,3084.2,1.94535]
[1732056292169,6.18954634,3084.3,3083.7,1.94568]
[1732056292359,3.99672,3084.2,3083.7,1.9457]
[1732056293206,3.99672,3084.2,3083.8,1.94564]
[1732056293207,0.7543,3084.2,3083.8,1.94564]
[1732056294672,0.7543,3084.2,3083.7,1.94567]
[1732056295503,0.8105,3083.5,3082.5,0.3382313]
[1732056295702,0.8105,3083.5,3082.8,1.94623]
[1732056295703,3.24328,3083.3,3082.8,1.94623]
[1732056295910,3.79325,3083.4,3082.8,1.94623]
[1732056296213,3.24325,3083.4,3082.8,1.94623]
[1732056297095,3.24325,3083.4,3082.9,1.94619]
[1732056297711,0.8105,3083.5,3082.9,1.94619]
[1732056297912,4.05358,3083.5,3082.9,1.94619]
[1732056298217,4.05358,3083.5,3083.1,1.94609]
[1732056298218,0.8105,3083.5,3083.1,1.94609]
[1732056298418,0.8105,3083.5,3083.0,1.9461]
[1732056298419,0.8105,3083.5,3083.0,3.8922]
[1732056299320,0.8105,3083.5,3083.1,1.94607]
[1732056300509,0.8105,3083.5,3083.3,1.94596]
[1732056303923,0.8105,3083.5,3083.4,1.9459]
[1732056306486,0.8105,3083.7,3083.5,1.9458]
[1732056307287,0.8105,3083.7,3083.2,1.94598]
[1732056307620,0.8105,3083.7,3083.4,1.94587]
[1732056307827,0.8105,3083.7,3083.4,3.89172]
[1732056308325,0.8105,3083.7,3083.5,1.94582]
[1732056313987,2.68461628,3083.9,3083.6,1.94577]
[1732056314189,4.18822418,3084.0,3083.6,1.94577]
[1732056314190,3.50021628,3084.0,3083.6,1.94577]
[1732056315910,0.8156,3084.0,3083.6,1.94577]
[1732056316318,3.50021628,3084.0,3083.6,1.94577]
[1732056316834,2.68461628,3083.9,3083.6,3.89151]
[1732056317133,3.50021628,3084.0,3083.7,1.9457]
[1732056317334,0.8156,3084.0,3083.8,1.94564]
[1732056319128,0.8156,3084.0,3083.9,1.94558]
[1732056319329,6.99708045,3084.6,3083.8,2.334768]
[1732056319330,2.68461628,3084.6,3083.8,2.334768]
[1732056319645,4.18811879,3085.0,3084.8,1.94502]
[1732056319930,0.8156,3085.0,3084.8,3.89004]
[1732056320135,0.8156,3085.0,3084.9,1.94495]
[1732056320446,0.8156,3085.3,3085.0,3.88967]
[1732056320733,0.8156,3085.3,3085.0,1.94483]
[1732056321087,0.8156,3085.3,3085.0,3.88968]
[1732056321903,0.8156,3085.3,3085.0,1.94483]
[1732056322499,3.24144,3085.1,3084.3,1.94533]
[1732056322836,4.05712,3085.0,3084.4,1.94524]
[1732056323034,4.05712,3085.0,3084.5,1.9452]
[1732056324330,0.8029,3084.7,3084.1,1.9454]
[1732056324555,3.24191,3084.6,3084.1,1.9454]
[1732056326061,3.24191,3084.6,3083.9,1.94556]
[1732056326375,3.24228,3084.3,3083.7,1.94568]
[1732056326665,0.8029,3084.0,3083.5,1.94582]
[1732056326962,3.24278,3083.8,3083.1,3.89209]
[1732056327159,3.24278,3083.8,3083.2,1.94599]
[1732056328169,3.24287,3083.7,3083.2,1.94599]
[1732056333580,0.8029,3083.6,3083.2,1.94599]
[1732056336431,3.36468918,3084.3,3082.7,1.94632]
[1732056336638,0.8029,3084.6,3084.2,1.94539]
[1732056336834,0.8029,3085.1,3084.3,0.194539]
[1732056337041,0.8029,3085.1,3084.1,1.94546]
[1732056337234,0.8029,3085.5,3085.0,1.94485]
[1732056337471,0.8029,3085.5,3085.1,2.139305]
[1732056337684,0.8029,3085.5,3085.1,1.94482]
[1732056339978,0.8029,3085.5,3085.1,3.88961]
[1732056340591,0.8029,3085.5,3085.2,1.94476]
[1732056342109,6.48142,3085.8,3085.2,1.94476]
[1732056342611,3.2407,3085.8,3085.2,1.94476]
[1732056347420,3.2407,3085.8,3085.2,2.333715]
[1732056348779,7.05412,3085.7,3085.2,0.388955]
[1732056348975,7.05412,3085.7,3085.1,1.94479]
[1732056349323,7.05412,3085.7,3085.1,3.88956]
[1732056349481,6.24082,3085.7,3085.2,1.94475]
[1732056349679,3.0,3085.7,3085.2,1.94475]
[1732056356587,3.0,3085.7,3085.3,1.94469]
[1732056360930,0.7894,3085.6,3085.1,1.94477]
[1732056361131,4.03032,3085.6,3085.1,1.94477]
[1732056361332,4.03032,3085.6,3084.9,1.9449]
[1732056361333,3.24096,3085.5,3084.9,1.9449]
[1732056362043,3.24096,3085.5,3085.0,1.94485]
[1732056362239,0.7894,3085.6,3085.1,1.94481]
[1732056362882,0.7894,3085.6,3084.3,1.94533]
[1732056363174,4.03028,3085.6,3085.1,1.94483]
[1732056363548,3.24097,3085.5,3085.0,1.94483]
[1732056363757,0.7894,3085.6,3085.1,1.94482]
[1732056365483,4.03031,3085.6,3085.1,1.94482]
[1732056365974,3.0,3085.7,3084.9,1.94495]
[1732056366181,3.2417,3084.8,3084.2,1.94536]
[1732056366882,3.2417,3084.8,3084.2,3.89072]
[1732056367169,3.2417,3084.8,3084.2,1.94536]
[1732056368484,3.2417,3084.8,3084.0,1.94549]
[1732056368485,3.24189,3084.7,3084.0,1.94546]
[1732056368665,3.24189,3084.7,3084.0,2.440006]
[1732056369191,3.24189,3084.7,3084.1,1.94545]
[1732056369385,3.2417,3084.8,3084.1,1.94545]
[1732056369676,3.24202,3084.5,3084.0,1.94546]
[1732056369867,0.825,3084.4,3084.0,1.94546]
[1732056372364,0.825,3084.4,3083.8,1.94562]
[1732056372540,4.06712,3084.4,3083.8,1.9456]
[1732056373169,4.06712,3084.4,3083.9,1.94555]
[1732056376208,0.825,3084.4,3083.3,0.3861802]
[1732056376408,3.24191,3084.6,3084.1,1.94542]
[1732056376769,3.24191,3084.6,3084.1,3.89084]
[1732056377071,3.825,3084.7,3084.1,3.89084]
[1732056377378,7.0668,3084.7,3084.1,3.89084]
[1732056377618,7.0668,3084.7,3084.1,1.94542]
[1732056379308,7.0668,3084.7,3084.1,3.89084]
[1732056379508,7.0668,3084.7,3084.1,1.94542]
[1732056381175,7.0668,3084.7,3084.2,1.94538]
[1732056382878,7.0668,3084.7,3084.1,1.94542]
[1732056382879,3.825,3084.7,3084.1,1.94542]
[1732056383085,3.825,3084.7,3083.4,1.9459]
[1732056383086,3.0,3084.7,3084.3,1.94529]
[1732056383323,4.06636,3085.2,3084.5,1.9452]
[1732056383497,4.06636,3085.2,3084.7,1.94507]
[1732056383699,11.20476777,3085.4,3084.9,1.94494]
[1732056384019,4.60157778,3085.4,3084.9,1.94494]
[1732056384231,1.36044778,3085.4,3085.0,1.94488]
[1732056385729,0.7902,3085.5,3085.0,1.94489]
[1732056386292,2.15064778,3085.5,3085.0,1.94489]
[1732056386492,2.15064778,3085.5,3084.2,1.94538]
[1732056386493,1.36044778,3085.3,3084.8,1.94497]
[1732056386771,4.60166778,3085.3,3084.8,1.94497]
[1732056387025,4.60166778,3085.3,3084.8,3.88996]
[1732056387231,3.24122,3085.3,3084.8,3.88996]
[1732056387608,8.39165778,3085.5,3084.8,3.88996]
[1732056387609,8.39165778,3085.5,3084.9,1.94493]
[1732056387792,3.24098,3085.5,3084.2,3.89078]
[1732056387997,3.24098,3085.5,3084.1,1.94546]
[1732056387998,3.24098,3085.5,3084.9,3.88982]
[1732056388398,4.60142778,3085.5,3084.9,3.88982]
[1732056389292,3.24098,3085.5,3085.0,1.94489]
[1732056389709,4.60142778,3085.5,3085.0,1.94489]
[1732056391437,3.0,3085.1,3084.7,1.94507]
[1732056394656,6.24138,3085.1,3084.6,1.94514]
[1732056394865,0.7902,3085.0,3084.6,1.94514]
[1732056402210,0.7902,3085.0,3084.6,3.89025]
[1732056402513,0.7902,3085.0,3084.6,1.94511]
[1732056403913,4.60165778,3085.3,3083.9,0.08016326]
[1732056403914,3.24121,3085.3,3084.0,1.94552]
[1732056404119,3.7507,3085.2,3084.8,1.94497]
[1732056404411,3.7507,3085.2,3084.8,3.88995]
[1732056405710,3.7507,3085.2,3084.8,1.94497]
[1732056405896,0.7507,3085.2,3084.9,1.94489]
[1732056407276,3.0,3085.4,3084.9,1.94489]
[1732056407476,3.7507,3085.4,3085.0,1.94487]
[1732056407917,0.7507,3085.4,3085.1,1.94483]
[1732056408129,3.24103,3085.5,3085.1,1.94483]
[1732056408282,4.05603,3085.5,3085.1,1.94483]
[1732056408721,3.24081,3085.7,3085.1,1.94483]
[1732056409222,3.0,3085.6,3085.1,1.94483]
[1732056410207,6.24088,3085.6,3085.1,1.94483]
[1732056413194,3.0,3085.6,3085.2,0.194483]
[1732056415928,3.0,3085.6,3085.2,2.139243]
[1732056416101,0.815,3085.8,3085.4,1.94459]
[1732056416429,0.55,3085.9,3085.4,2.3529693]
[1732056416583,3.36187605,3086.2,3085.4,2.3529693]
[1732056416784,3.24034,3086.1,3085.6,1.94451]
[1732056416984,3.36187605,3086.4,3085.9,1.94431]
[1732056417320,4.153167,3086.5,3086.0,1.94426]
[1732056417321,5.63552083,3086.5,3086.0,1.94426]
[1732056417633,1.50274478,3086.5,3086.0,1.94426]
[1732056418124,0.142297,3086.5,3086.0,1.94426]
[1732056418622,0.142297,3086.5,3085.1,0.0745444]
[1732056418623,4.36044778,3086.3,3085.7,1.94439]
[1732056418825,1.36044778,3086.3,3085.9,1.94432]
[1732056419036,3.142297,3086.5,3085.9,1.94432]
[1732056419037,7.74268478,3086.5,3085.9,1.94432]
[1732056420186,4.50274478,3086.5,3085.9,1.94432]
[1732056420386,0.142297,3086.5,3086.1,1.94416]
[1732056420831,0.142297,3086.5,3086.1,1.94414]
[1732056421036,0.142297,3086.5,3086.1,3.88829]
[1732056421248,0.142297,3086.5,3086.2,1.94408]
[1732056421594,0.142297,3086.5,3086.3,1.94407]
[1732056422297,0.142297,3086.5,3086.1,1.94414]
[1732056438459,0.142297,3086.5,3086.1,3.8883]
[1732056438947,0.142297,3086.5,3086.1,1.94414]
[1732056440034,0.142297,3086.5,3086.1,3.88831]
[1732056440238,0.142297,3086.5,3086.2,0.388831]
[1732056440426,0.142297,3086.5,3086.1,1.94414]
[1732056443280,0.7566,3086.4,3086.1,1.94414]
[1732056446303,0.7566,3086.4,3086.1,3.8883]
[1732056446855,0.7566,3086.4,3086.1,1.94414]
[1732056448656,0.7566,3086.4,3086.1,3.88829]
[1732056448892,0.7566,3086.4,3086.2,0.388829]
[1732056449394,0.7566,3086.4,3086.1,1.94414]
[1732056450897,0.7566,3086.4,3086.1,3.8883]
[1732056453355,0.142297,3086.5,3086.1,3.8883]
[1732056455404,0.142297,3086.5,3086.2,1.94413]
[1732056458776,0.092297,3086.5,3086.2,1.94413]
[1732056459069,0.092297,3086.5,3086.3,0.388827]
[1732056462805,0.092297,3086.5,3086.3,2.332897]
[1732056469618,0.092297,3086.5,3086.3,4.276937]
[1732056469821,0.092297,3086.5,3086.3,3.88811]
[1732056470254,0.092297,3086.5,3086.4,1.94401]
[1732056479966,0.092297,3086.5,3086.4,4.94401]
[1732056483806,0.092297,3086.5,3086.4,4.95401]
[1732056483960,0.092297,3086.5,3086.4,5.644818]
[1732056485085,7e-06,3086.5,3086.4,5.644818]
[1732056485894,7e-06,3086.5,3086.4,5.654818]
[1732056486190,0.7917,3088.1,3087.9,1.94305]